bitfinex-derivatives/quotes_BTCF0:USTF0_20210406
["timestamp","ask_amount","ask_price","bid_price","bid_amount"]
[1617719237582,0.90166107,57580.0,57574.0,0.3076134]
[1617719237781,2.06128107,57580.0,57574.0,0.3076134]
[1617719238183,1.43674848,57577.0,57575.0,0.3076418]
[1617719238383,1.0,57576.0,57575.0,0.1076418]
[1617719238587,0.4366023,57575.0,57572.0,0.30766883]
[1617719238794,2.5,57576.0,57572.0,0.30766883]
[1617719238986,1.35704253,57573.0,57564.0,0.82045727]
[1617719239187,1.5,57572.0,57564.0,0.36920965]
[1617719239386,1.0,57565.0,57564.0,0.36920965]
[1617719239586,2.03727175,57565.0,57559.0,0.10725655]
[1617719239987,0.29503372,57560.0,57559.0,0.47647513]
[1617719240987,0.6805355,57565.0,57559.0,0.47647513]
[1617719240988,0.24454655,57565.0,57559.0,0.10725655]
[1617719241289,0.0519,57577.0,57559.0,0.10725655]
[1617719241487,1.0,57593.0,57560.0,0.27]
[1617719241789,1.0,57593.0,57591.0,0.10725655]
[1617719241988,0.4591,57594.0,57591.0,0.10725655]
[1617719242389,0.4918,57603.0,57591.0,0.10725655]
[1617719242390,0.92346584,57603.0,57591.0,0.10725655]
[1617719242790,0.4918,57603.0,57592.0,0.27]
[1617719243795,0.4918,57603.0,57602.0,0.10725655]
[1617719243990,0.4918,57603.0,57602.0,0.11725655]
[1617719245993,0.4745,57603.0,57602.0,0.11725655]
[1617719246193,0.4205,57603.0,57602.0,0.11725655]
[1617719246397,0.3886,57603.0,57602.0,0.11725655]
[1617719246694,0.3792,57603.0,57602.0,0.11725655]
[1617719247100,0.10725655,57606.0,57602.0,0.11725655]
[1617719248397,0.4997,57622.0,57602.0,0.11725655]
[1617719249700,0.4997,57622.0,57621.0,0.10725655]
[1617719250798,0.4997,57622.0,57621.0,0.37725655]
[1617719259318,0.63005,57622.0,57621.0,0.37725655]
[1617719260409,0.4997,57622.0,57621.0,0.37725655]
[1617719263414,0.61541,57622.0,57621.0,0.37725655]
[1617719266317,0.4997,57622.0,57621.0,0.37725655]
[1617719269720,0.64037,57622.0,57621.0,0.37725655]
[1617719272824,0.4997,57622.0,57621.0,0.37725655]
[1617719274023,0.62824,57622.0,57621.0,0.37725655]
[1617719275127,2.12824,57622.0,57621.0,0.37725655]
[1617719275326,2.12824,57622.0,57597.0,0.1281]
[1617719275527,3.12824,57622.0,57593.0,0.30380868]
[1617719275726,2.12824,57622.0,57615.0,0.10725655]
[1617719276027,1.0,57617.0,57615.0,0.10725655]
[1617719276226,1.0,57618.0,57615.0,0.10725655]
[1617719276526,1.0,57620.0,57615.0,0.10725655]
[1617719276726,1.0,57619.0,57615.0,0.10725655]
[1617719277325,1.0,57619.0,57616.0,0.052]
[1617719277326,0.0517,57619.0,57616.0,0.052]
[1617719277525,1.55006484,57621.0,57616.0,0.052]
[1617719277828,0.10725655,57617.0,57616.0,0.052]
[1617719278226,2.60725655,57617.0,57616.0,0.052]
[1617719278425,2.65865655,57617.0,57616.0,0.052]
[1617719278726,2.60725655,57617.0,57616.0,0.052]
[1617719278926,1.60725655,57617.0,57616.0,0.052]
[1617719279128,1.60725655,57617.0,57616.0,0.05097201]
[1617719279828,1.95629329,57617.0,57616.0,0.05097201]
[1617719280330,2.95629329,57617.0,57616.0,0.05097201]
[1617719280528,2.95629329,57617.0,57577.0,0.3043232]
[1617719280829,0.0519,57616.0,57573.0,0.30434608]
[1617719281028,3.15629329,57617.0,57573.0,0.30434608]
[1617719281328,1.10669,57600.0,57574.0,0.27]
[1617719281527,1.0,57598.0,57572.0,0.27]
[1617719281728,1.0,57599.0,57594.0,0.10725655]
[1617719282129,1.0,57599.0,57571.0,0.27]
[1617719282329,1.0,57598.0,57567.0,0.30437401]
[1617719282529,1.0,57596.0,57567.0,0.30437401]
[1617719282731,1.0,57596.0,57566.0,0.30438178]
[1617719282932,1.0,57597.0,57568.0,0.27]
[1617719283229,1.0,57595.0,57566.0,0.30438178]
[1617719283430,1.0,57596.0,57567.0,0.27]
[1617719283830,1.0,57595.0,57589.0,0.10725655]
[1617719284031,1.0,57594.0,57589.0,0.10725655]
[1617719284233,1.0,57594.0,57590.0,0.27]
[1617719284433,1.0,57593.0,57590.0,0.27]
[1617719284632,1.0,57594.0,57590.0,0.27]
[1617719285038,1.34771692,57605.0,57590.0,0.27]
[1617719285334,0.34789831,57609.0,57590.0,0.27]
[1617719285745,0.4586,57610.0,57590.0,0.27]
[1617719285941,0.4586,57610.0,57608.0,0.10725655]
[1617719286935,0.0517,57609.0,57608.0,0.10725655]
[1617719287135,0.4586,57610.0,57608.0,0.10725655]
[1617719287536,0.4586,57610.0,57609.0,0.27]
[1617719287736,0.4586,57610.0,57608.0,0.37725655]
[1617719287935,0.4586,57610.0,57608.0,0.10725655]
[1617719288138,0.4586,57610.0,57609.0,0.27]
[1617719288638,0.4586,57610.0,57609.0,0.37784]
[1617719289236,0.4408,57610.0,57609.0,0.37784]
[1617719290640,0.4408,57610.0,57609.0,0.27]
[1617719292541,0.4408,57610.0,57609.0,0.3216]
[1617719292842,0.3725,57610.0,57609.0,0.27]
[1617719294743,0.3446819,57629.0,57609.0,0.27]
[1617719294944,0.3446819,57629.0,57609.0,0.3224]
[1617719295345,0.34487532,57630.0,57609.0,0.3224]
[1617719295754,0.34521854,57633.0,57610.0,0.2]
[1617719296052,0.34521854,57633.0,57629.0,0.21499655]
[1617719296245,0.34560891,57636.0,57630.0,0.27]
[1617719296845,0.42238956,57641.0,57630.0,0.27]
[1617719296846,0.0513,57641.0,57630.0,0.27]
[1617719297246,0.06166442,57640.0,57630.0,0.27]
[1617719297848,0.48480875,57645.0,57644.0,0.10725655]
[1617719298048,0.38480875,57645.0,57644.0,0.10725655]
[1617719298250,0.53145398,57646.0,57644.0,0.37725655]
[1617719298648,0.10725655,57646.0,57644.0,0.37622885]
[1617719299748,0.4573,57650.0,57644.0,0.37622885]
[1617719299951,0.58987649,57654.0,57644.0,0.37622885]
[1617719300149,0.48261994,57654.0,57644.0,0.37622885]
[1617719300350,0.08717724,57653.0,57644.0,0.37622885]
[1617719300950,0.48776911,57645.0,57644.0,0.37622885]
[1617719301852,0.48692679,57649.0,57644.0,0.37622885]
[1617719302353,0.48704519,57650.0,57644.0,0.37622885]
[1617719303154,0.48680552,57649.0,57644.0,0.37622885]
[1617719304055,0.4867084,57648.0,57644.0,0.37622885]
[1617719304856,0.48653603,57647.0,57644.0,0.37622885]
[1617719305262,0.4865728,57648.0,57644.0,0.37622885]
[1617719306257,0.10725655,57656.0,57644.0,0.37622885]
[1617719306258,0.48664801,57649.0,57644.0,0.37622885]
[1617719306759,0.07044407,57647.0,57644.0,0.37622885]
[1617719307160,0.48628535,57646.0,57644.0,0.37622885]
[1617719307561,0.48641881,57648.0,57644.0,0.37622885]
[1617719308569,0.10725655,57656.0,57644.0,0.37622885]
[1617719308865,0.0516,57655.0,57645.0,0.0525]
[1617719309067,0.48624078,57650.0,57645.0,0.0525]
[1617719309266,0.48624078,57650.0,57646.0,3.8722]
[1617719309668,0.48624078,57650.0,57646.0,3.6022]
[1617719310067,0.48624078,57650.0,57647.0,0.27]
[1617719310468,0.46494078,57650.0,57647.0,0.27]
[1617719310869,0.06785461,57649.0,57630.0,0.30654158]
[1617719311369,2.60676,57650.0,57624.0,0.30658234]
[1617719311668,1.0,57638.0,57631.0,0.27]
[1617719311968,1.0,57638.0,57625.0,0.01]
[1617719311969,0.10725655,57632.0,57629.0,0.10725655]
[1617719312369,0.10725655,57632.0,57630.0,0.01]
[1617719312871,0.06844283,57631.0,57630.0,0.01]
[1617719316476,0.06844283,57631.0,57630.0,0.0622]
[1617719316678,0.10725655,57632.0,57630.0,0.0622]
[1617719316873,0.10725655,57632.0,57630.0,0.01]
[1617719318074,0.10725655,57642.0,57630.0,0.01]
[1617719318475,0.42404181,57635.0,57630.0,0.01]
[1617719320077,0.42354141,57636.0,57630.0,0.01]
[1617719320478,0.42348569,57635.0,57630.0,0.01]
[1617719321381,0.34663718,57631.0,57630.0,0.01]
[1617719323999,0.10956,57631.0,57630.0,0.01]
[1617719324806,1.0788835,57631.0,57630.0,0.01]
[1617719325005,0.8788835,57631.0,57630.0,0.01]
[1617719325493,0.8788835,57631.0,57630.0,0.00897198]
[1617719325897,0.9313835,57631.0,57630.0,0.00897198]
[1617719326095,1.41249114,57631.0,57630.0,0.00897198]
[1617719326287,1.35999114,57631.0,57614.0,3.0982]
[1617719326891,0.47795979,57615.0,57614.0,3.0982]
[1617719327087,0.47795979,57615.0,57589.0,0.0522]
[1617719327088,0.13144,57615.0,57589.0,0.0522]
[1617719327387,0.13144,57615.0,57614.0,0.27]
[1617719327587,0.13144,57615.0,57602.0,0.01]
[1617719327588,0.34639889,57611.0,57602.0,0.01]
[1617719327787,0.34639889,57611.0,57599.0,0.30667158]
[1617719327987,0.34654071,57612.0,57610.0,0.10725655]
[1617719328388,0.34654071,57612.0,57611.0,0.27]
[1617719328687,0.10725655,57614.0,57611.0,0.27]
[1617719328688,0.06168279,57613.0,57611.0,0.27]
[1617719328987,0.40845016,57612.0,57611.0,0.27]
[1617719329490,0.34676715,57612.0,57611.0,0.27]
[1617719331089,0.47407715,57612.0,57611.0,0.27]
[1617719331793,0.53576131,57612.0,57611.0,0.3222]
[1617719331989,0.51056131,57612.0,57611.0,0.27]
[1617719332192,0.38325131,57612.0,57611.0,0.27]
[1617719332590,0.42541042,57618.0,57611.0,0.27]
[1617719332991,0.06167979,57620.0,57611.0,0.27]
[1617719333491,0.42541333,57616.0,57611.0,0.27]
[1617719335292,0.42553396,57617.0,57611.0,0.27]
[1617719335491,0.42553396,57617.0,57611.0,3.4355]
[1617719335693,0.0526,57616.0,57611.0,3.4355]
[1617719335894,0.42608639,57622.0,57611.0,3.4355]
[1617719336193,0.48417588,57627.0,57621.0,0.15915655]
[1617719336392,0.48417588,57627.0,57621.0,0.42915655]
[1617719336593,0.42641294,57623.0,57621.0,0.37725655]
[1617719337594,0.42641294,57623.0,57621.0,0.42995655]
[1617719337994,0.42646613,57624.0,57621.0,0.42995655]
[1617719338196,0.42646613,57624.0,57621.0,0.54603655]
[1617719338397,0.06167111,57622.0,57621.0,0.54603655]
[1617719338795,0.42648845,57625.0,57621.0,0.54603655]
[1617719339997,0.42657979,57627.0,57621.0,0.54603655]
[1617719340898,0.48824758,57627.0,57621.0,0.49333655]
[1617719341197,0.48824758,57627.0,57621.0,0.37725655]
[1617719341408,0.06166779,57627.0,57621.0,0.37725655]
[1617719343100,0.48700558,57627.0,57621.0,0.37725655]
[1617719343501,0.4251435,57625.0,57621.0,0.37725655]
[1617719344703,0.4251435,57625.0,57622.0,0.0512]
[1617719345204,0.48625803,57627.0,57623.0,0.27]
[1617719345704,0.06166779,57627.0,57623.0,0.27]
[1617719346104,0.4243739,57630.0,57623.0,0.27]
[1617719346403,0.4243739,57630.0,57622.0,0.27]
[1617719346604,0.06166369,57626.0,57624.0,0.27]
[1617719347006,0.06166369,57626.0,57622.0,0.27]
[1617719347204,0.4243297,57632.0,57625.0,0.27]
[1617719347605,0.4243297,57632.0,57622.0,0.11641]
[1617719347606,0.4243297,57632.0,57627.0,0.0513]
[1617719347804,0.42466469,57638.0,57627.0,0.0513]
[1617719348004,0.42466469,57638.0,57637.0,2.67003]
[1617719348205,0.42466685,57642.0,57637.0,2.77728655]
[1617719348405,0.42466685,57642.0,57637.0,2.78728655]
[1617719348605,0.4248045,57644.0,57637.0,2.78728655]
[1617719349206,0.3980045,57644.0,57637.0,2.83878655]
[1617719349406,0.3717045,57644.0,57637.0,2.83878655]
[1617719349611,0.48282295,57652.0,57637.0,2.78728655]
[1617719350107,0.48282295,57652.0,57651.0,0.10725655]
[1617719350509,0.48282295,57652.0,57651.0,0.37725655]
[1617719350910,0.48288986,57655.0,57651.0,0.37725655]
[1617719351713,0.48238491,57656.0,57651.0,0.37725655]
[1617719351913,0.48238491,57656.0,57652.0,0.0521]
[1617719352116,0.4759,57659.0,57652.0,0.0521]
[1617719352313,0.4759,57659.0,57653.0,0.27]
[1617719352713,0.4759,57659.0,57652.0,0.27]
[1617719353114,0.4759,57659.0,57654.0,0.27]
[1617719353314,0.4759,57659.0,57652.0,0.27]
[1617719353514,0.95840679,57659.0,57652.0,0.27]
[1617719353714,0.95840679,57659.0,57655.0,0.27]
[1617719353915,0.95840679,57659.0,57652.0,0.27]
[1617719354214,0.48250679,57659.0,57658.0,0.10725655]
[1617719354415,0.48251916,57660.0,57658.0,0.24458655]
[1617719354617,0.48251916,57660.0,57658.0,0.51458655]
[1617719354815,0.48272571,57663.0,57658.0,0.51458655]
[1617719355216,0.48261315,57666.0,57658.0,0.51458655]
[1617719355516,0.48261315,57666.0,57665.0,2.8028]
[1617719355816,0.4737,57681.0,57665.0,2.8028]
[1617719355817,0.48320048,57673.0,57665.0,2.8128]
[1617719356216,0.48314026,57674.0,57672.0,0.10725655]
[1617719356616,1.62331,57673.0,57672.0,0.10725655]
[1617719356818,2.64501435,57673.0,57672.0,0.10725655]
[1617719357016,2.64501435,57673.0,57640.0,0.3062933]
[1617719357220,2.64501435,57673.0,57638.0,0.30630011]
[1617719357620,0.58759875,57661.0,57639.0,0.27]
[1617719357818,2.08759875,57661.0,57639.0,0.27]
[1617719358018,2.08759875,57661.0,57578.0,0.1397]
[1617719358019,0.48145,57659.0,57637.0,0.01]
[1617719358317,1.0,57657.0,57648.0,0.10725655]
[1617719358519,1.0,57654.0,57648.0,0.10725655]
[1617719358716,2.5,57654.0,57648.0,0.10725655]
[1617719358918,1.5,57654.0,57648.0,0.10725655]
[1617719359119,0.48059358,57652.0,57648.0,0.10725655]
[1617719359418,0.44059358,57652.0,57648.0,0.10725655]
[1617719360019,0.53832342,57661.0,57648.0,0.10725655]
[1617719360219,0.10725655,57659.0,57649.0,0.27]
[1617719360717,0.10725655,57659.0,57649.0,0.37524]
[1617719361217,0.53809742,57665.0,57649.0,0.37524]
[1617719361418,1.21848011,57686.0,57649.0,0.37524]
[1617719361419,0.5381885,57668.0,57649.0,0.37524]
[1617719361618,0.5381885,57668.0,57650.0,0.0527]
[1617719361918,1.16331161,57677.0,57650.0,0.0527]
[1617719361919,0.53754812,57671.0,57650.0,0.0527]
[1617719362119,0.53754812,57671.0,57651.0,0.27]
[1617719362422,0.10725655,57672.0,57670.0,0.10725655]
[1617719362719,0.10725655,57672.0,57670.0,0.37725655]
[1617719366927,0.10725655,57672.0,57670.0,0.10725655]
[1617719367128,0.23972655,57672.0,57648.0,0.3060238]
[1617719367328,0.23972655,57672.0,57645.0,0.30602968]
[1617719367837,0.23972655,57672.0,57649.0,0.27]
[1617719368038,0.23972655,57672.0,57646.0,0.27]
[1617719368245,1.12225912,57678.0,57670.0,0.10725655]
[1617719368637,0.4645,57678.0,57670.0,0.10725655]
[1617719368835,0.4645,57678.0,57670.0,0.22603655]
[1617719369640,0.42176024,57671.0,57670.0,0.22603655]
[1617719371532,0.4645,57678.0,57670.0,0.49603655]
[1617719372434,0.4645,57678.0,57677.0,0.10725655]
[1617719372636,0.4645,57678.0,57677.0,0.37725655]
[1617719376639,0.4574,57678.0,57677.0,0.37725655]
[1617719376839,0.4253,57678.0,57677.0,0.37725655]
[1617719377040,0.406,57678.0,57677.0,0.37725655]
[1617719379540,0.10725655,57685.0,57677.0,0.37725655]
[1617719379846,0.4582,57692.0,57677.0,0.37725655]
[1617719380242,0.4582,57692.0,57691.0,0.10725655]
[1617719382347,0.56545655,57692.0,57691.0,0.10622965]
[1617719389156,0.4582,57692.0,57691.0,0.10622965]
[1617719389359,0.48041808,57704.0,57691.0,0.20885965]
[1617719389858,0.0514,57707.0,57691.0,0.20885965]
[1617719389859,0.5320065,57707.0,57691.0,0.20885965]
[1617719390058,0.5320065,57707.0,57692.0,0.0512]
[1617719390258,0.5320065,57707.0,57706.0,0.10725655]
[1617719390473,0.4806065,57707.0,57706.0,0.25292655]
[1617719390862,0.48086245,57710.0,57706.0,0.25292655]
[1617719391266,0.93841219,57719.0,57706.0,0.25292655]
[1617719391461,0.93841219,57719.0,57707.0,0.27]
[1617719391663,0.4242176,57718.0,57707.0,0.27]
[1617719391980,0.4242176,57718.0,57717.0,3.3253]
[1617719392363,0.4242176,57718.0,57717.0,3.70255655]
[1617719392567,0.4567,57719.0,57717.0,3.70255655]
[1617719393369,0.4567,57719.0,57718.0,0.0522]
[1617719394168,0.4567,57719.0,57717.0,3.43255655]
[1617719394971,0.53121971,57725.0,57718.0,0.27]
[1617719395171,0.48176318,57731.0,57718.0,0.27]
[1617719395172,0.423839,57726.0,57719.0,0.0522]
[1617719395671,0.423839,57726.0,57720.0,0.27]
[1617719395872,0.42533347,57723.0,57720.0,0.27]
[1617719396574,0.42539912,57724.0,57720.0,0.27]
[1617719396973,1.5,57724.0,57717.0,0.10725655]
[1617719397173,1.65456,57724.0,57717.0,0.10725655]
[1617719397374,1.65456,57724.0,57718.0,0.0524]
[1617719397575,1.65456,57724.0,57717.0,0.10725655]
[1617719397977,0.15456,57724.0,57717.0,0.10725655]
[1617719398475,0.10725655,57718.0,57717.0,0.10725655]
[1617719399280,0.10725655,57718.0,57717.0,3.08345655]
[1617719399676,1.60725655,57718.0,57683.0,0.35596237]
[1617719399877,2.60725655,57718.0,57683.0,2.5281]
[1617719400077,0.2,57717.0,57682.0,0.30337712]
[1617719400278,0.2,57717.0,57648.0,0.2]
[1617719400279,1.7,57697.0,57672.0,0.30342228]
[1617719400480,1.7,57697.0,57693.0,0.10725655]
[1617719400481,1.5,57697.0,57693.0,0.10725655]
[1617719400985,2.5,57694.0,57663.0,0.30344992]
[1617719401178,2.6243,57683.0,57663.0,0.30344992]
[1617719401381,1.5,57682.0,57660.0,0.3034694]
[1617719401582,1.5,57682.0,57638.0,0.56647621]
[1617719401583,1.0,57681.0,57652.0,0.30353595]
[1617719401782,1.0,57666.0,57652.0,0.30353595]
[1617719401980,2.64692,57666.0,57652.0,0.30353595]
[1617719402181,2.64692,57666.0,57645.0,0.44518606]
[1617719402182,1.0,57664.0,57645.0,0.30355794]
[1617719402382,1.0,57662.0,57654.0,0.10725655]
[1617719402582,3.7112,57659.0,57654.0,0.10725655]
[1617719402781,2.5,57658.0,57645.0,0.30355794]
[1617719402988,2.5,57658.0,57639.0,0.303582]
[1617719402989,1.0,57656.0,57639.0,0.303582]
[1617719403183,1.5,57655.0,57639.0,0.303582]
[1617719403384,1.0,57654.0,57635.0,0.30358806]
[1617719403585,1.0,57641.0,57635.0,0.30358806]
[1617719403788,2.6262,57641.0,57635.0,0.30358806]
[1617719403994,1.0,57640.0,57635.0,0.30358806]
[1617719404184,1.5,57639.0,57635.0,0.30358806]
[1617719404386,1.10725655,57636.0,57631.0,0.10725655]
[1617719404587,1.5,57635.0,57631.0,0.10725655]
[1617719404991,1.0,57632.0,57631.0,0.10725655]
[1617719405201,2.5,57632.0,57631.0,0.10725655]
[1617719406590,5.2642,57632.0,57631.0,0.10725655]
[1617719406991,1.5,57632.0,57610.0,0.30369908]
[1617719407193,2.5,57632.0,57610.0,0.30369908]
[1617719407393,2.5,57632.0,57608.0,0.30371059]
[1617719407394,1.0,57619.0,57608.0,0.30371059]
[1617719407693,1.5,57618.0,57608.0,0.30371059]
[1617719407993,1.5,57618.0,57595.0,0.50618431]
[1617719407994,1.0,57616.0,57607.0,0.30371531]
[1617719408196,1.0,57615.0,57609.0,0.27]
[1617719408494,1.5,57615.0,57611.0,0.10725655]
[1617719408794,3.4873,57611.0,57604.0,0.30339755]
[1617719408994,2.5,57610.0,57604.0,0.30339755]
[1617719409194,2.5,57610.0,57603.0,0.30340448]
[1617719409195,1.0,57604.0,57603.0,0.30340448]
[1617719409394,2.60083,57604.0,57603.0,0.30340448]
[1617719409597,1.60083,57604.0,57593.0,0.30348305]
[1617719409997,2.60083,57604.0,57583.0,0.30349949]
[1617719410196,1.0,57594.0,57583.0,0.30349949]
[1617719410396,1.5,57593.0,57583.0,0.30349949]
[1617719410597,1.5,57593.0,57589.0,0.10725655]
[1617719411000,0.2,57592.0,57589.0,0.10725655]
[1617719411198,1.0,57590.0,57573.0,0.30322274]
[1617719411403,1.7,57589.0,57572.0,0.30323882]
[1617719411598,2.9964,57585.0,57572.0,0.30323882]
[1617719411899,2.9964,57585.0,57570.0,0.30324736]
[1617719411900,1.0,57583.0,57570.0,0.30324736]
[1617719412098,1.7,57584.0,57570.0,0.30324736]
[1617719412298,1.5,57582.0,57569.0,0.30324862]
[1617719412498,1.5,57582.0,57576.0,0.10725655]
[1617719413302,1.0,57577.0,57576.0,0.10725655]
[1617719413500,1.14552,57577.0,57576.0,0.10725655]
[1617719413698,0.14552,57577.0,57576.0,0.10725655]
[1617719413901,2.64552,57577.0,57576.0,0.10725655]
[1617719414101,1.64552,57577.0,57576.0,0.10725655]
[1617719414301,2.64552,57577.0,57576.0,0.10725655]
[1617719414500,1.75277655,57577.0,57576.0,0.10725655]
[1617719414701,2.75277655,57577.0,57576.0,0.10725655]
[1617719414900,2.75277655,57577.0,57558.0,0.30330813]
[1617719415302,1.25277655,57577.0,57557.0,0.30331141]
[1617719415501,1.0,57565.0,57557.0,0.30331141]
[1617719415700,1.0,57565.0,57550.0,0.44485674]
[1617719415701,1.0,57564.0,57558.0,0.30331078]
[1617719415902,1.14941,57565.0,57558.0,0.30331078]
[1617719416101,1.14941,57565.0,57545.0,0.50551796]
[1617719416102,0.14941,57565.0,57557.0,0.30332607]
[1617719416502,0.14941,57565.0,57556.0,0.30333544]
[1617719416702,1.14941,57565.0,57564.0,0.10725655]
[1617719416901,0.14941,57565.0,57564.0,0.10725655]
[1617719417302,1.0,57572.0,57564.0,0.10725655]
[1617719417604,1.0,57595.0,57564.0,0.10725655]
[1617719417804,2.9364,57601.0,57564.0,0.10725655]
[1617719418105,0.2,57592.0,57565.0,0.40724]
[1617719418306,3.9364,57601.0,57565.0,0.40724]
[1617719418607,3.9364,57601.0,57590.0,0.10725655]
[1617719418906,1.0,57600.0,57590.0,0.10725655]
[1617719419104,3.9364,57601.0,57590.0,0.10725655]
[1617719419406,2.9364,57601.0,57590.0,0.10725655]
[1617719421009,2.9364,57601.0,57590.0,0.37725655]
[1617719421218,3.5846,57635.0,57590.0,0.37725655]
[1617719421508,0.4749,57634.0,57590.0,0.37725655]
[1617719421707,0.4749,57634.0,57590.0,0.57725655]
[1617719422107,0.4749,57634.0,57590.0,0.37725655]
[1617719422507,1.0,57633.0,57590.0,0.37725655]
[1617719422716,1.0,57633.0,57621.0,0.10725655]
[1617719423007,1.0,57631.0,57622.0,0.27]
[1617719423210,0.4749,57634.0,57622.0,0.27]
[1617719424010,1.0,57628.0,57621.0,0.10725655]
[1617719424410,1.59138,57634.0,57621.0,0.10725655]
[1617719424614,0.10725655,57622.0,57621.0,0.10725655]
[1617719429315,0.10725655,57622.0,57621.0,0.15915655]
[1617719429516,0.10725655,57622.0,57621.0,0.10725655]
[1617719432416,0.10725655,57622.0,57621.0,0.37725655]
[1617719432718,0.4749,57634.0,57621.0,0.37725655]
[1617719434332,3.2609,57622.0,57621.0,0.10725655]
[1617719434520,4.38514,57622.0,57586.0,0.30002551]
[1617719434720,4.38514,57622.0,57610.0,0.10725655]
[1617719435127,1.0,57616.0,57610.0,0.10725655]
[1617719435326,1.0,57619.0,57610.0,0.10725655]
[1617719436132,3.38514,57622.0,57610.0,0.10725655]
[1617719436133,1.0,57617.0,57610.0,0.10725655]
[1617719436529,1.0,57611.0,57573.0,0.30006908]
[1617719436723,1.0,57611.0,57595.0,0.10725655]
[1617719436923,0.2,57610.0,57595.0,0.10725655]
[1617719437222,0.2,57603.0,57596.0,0.27]
[1617719437424,1.0,57599.0,57596.0,0.27]
[1617719437622,1.0,57599.0,57595.0,0.10725655]
[1617719437825,0.2,57603.0,57595.0,0.10725655]
[1617719437826,1.15923,57597.0,57595.0,0.10725655]
[1617719438025,4.5639,57596.0,57595.0,0.10725655]
[1617719438223,4.5639,57596.0,57562.0,0.30011301]
[1617719438425,4.5639,57596.0,57560.0,0.30012017]
[1617719438825,1.0,57586.0,57561.0,0.27]
[1617719439029,1.14602,57572.0,57561.0,0.27]
[1617719439227,0.2,57571.0,57561.0,0.27]
[1617719439526,0.2,57571.0,57553.0,0.30023214]
[1617719439527,1.7,57571.0,57553.0,0.30023214]
[1617719439825,1.7,57571.0,57511.0,0.1281]
[1617719439826,1.0,57562.0,57530.0,0.30027948]
[1617719440026,1.0,57562.0,57523.0,0.74071143]
[1617719440228,1.15168,57551.0,57523.0,0.30030153]
[1617719440429,0.2,57550.0,57531.0,0.27]
[1617719440627,1.0,57548.0,57531.0,0.27]
[1617719440826,1.0,57548.0,57528.0,0.27]
[1617719440827,1.2,57550.0,57540.0,0.10725655]
[1617719441127,0.15168,57551.0,57541.0,0.27]
[1617719442529,1.0,57549.0,57541.0,0.27]
[1617719442730,0.10725655,57549.0,57548.0,0.10725655]
[1617719443128,1.0,57564.0,57548.0,0.10725655]
[1617719443429,1.0,57575.0,57548.0,0.10725655]
[1617719443630,1.0,57581.0,57549.0,0.27]
[1617719444133,1.0,57594.0,57549.0,0.27]
[1617719444430,1.0,57592.0,57549.0,0.27]
[1617719444629,1.0,57592.0,57550.0,0.0524]
[1617719444829,1.2,57591.0,57577.0,0.10725655]
[1617719445032,0.2,57590.0,57577.0,0.10725655]
[1617719445330,1.5,57587.0,57577.0,0.10725655]
[1617719445830,1.5,57587.0,57537.0,3.461]
[1617719446132,0.61245,57578.0,57537.0,3.461]
[1617719446531,2.11245,57578.0,57537.0,3.461]
[1617719446732,2.11245,57578.0,57577.0,0.10725655]
[1617719447831,0.2,57577.0,57518.0,0.29911035]
[1617719448032,1.5,57576.0,57517.0,0.299117]
[1617719448230,1.61245,57578.0,57517.0,0.299117]
[1617719448231,1.7,57566.0,57517.0,0.299117]
[1617719448431,1.7,57566.0,57503.0,0.54992834]
[1617719448432,1.82102,57566.0,57518.0,0.27]
[1617719448831,1.0,57562.0,57556.0,0.10725655]
[1617719449031,1.5,57561.0,57556.0,0.10725655]
[1617719449231,1.5,57558.0,57513.0,0.2991161]
[1617719449433,2.5,57558.0,57513.0,0.2991161]
[1617719449632,2.5,57558.0,57511.0,0.42723074]
[1617719449830,2.5,57558.0,57514.0,0.27]
[1617719450033,1.5,57558.0,57514.0,0.27]
[1617719450333,1.5,57558.0,57513.0,0.2]
[1617719450532,1.5,57558.0,57515.0,0.27]
[1617719450732,1.5,57558.0,57556.0,0.10725655]
[1617719451432,1.0,57567.0,57556.0,0.10725655]
[1617719451832,1.5,57576.0,57556.0,0.10725655]
[1617719452232,2.5,57576.0,57556.0,0.10725655]
[1617719452634,1.5,57569.0,57556.0,0.10725655]
[1617719452833,1.5,57569.0,57539.0,2.551]
[1617719452834,1.5,57569.0,57563.0,0.10725655]
[1617719453036,1.0,57567.0,57563.0,0.10725655]
[1617719453436,1.5,57566.0,57563.0,0.10725655]
[1617719453636,2.5,57564.0,57563.0,0.10725655]
[1617719454037,2.5,57564.0,57511.0,0.1281]
[1617719454038,2.5,57564.0,57511.0,0.42746767]
[1617719454641,1.5,57552.0,57511.0,0.42746767]
[1617719454940,0.10725655,57549.0,57512.0,0.27]
[1617719456041,1.60725655,57549.0,57512.0,0.27]
[1617719456842,1.60725655,57549.0,57548.0,0.10725655]
[1617719457943,2.60725655,57549.0,57548.0,0.10725655]
[1617719459346,2.60725655,57549.0,57519.0,0.30381666]
[1617719459748,0.2,57548.0,57519.0,0.30381666]
[1617719459948,1.5,57547.0,57519.0,0.30381666]
[1617719460159,1.5,57547.0,57520.0,0.27]
[1617719460347,1.0,57543.0,57520.0,0.27]
[1617719460547,4.6087,57542.0,57518.0,0.30383243]
[1617719460748,4.6087,57542.0,57517.0,0.27]
[1617719460749,1.0,57541.0,57540.0,0.10725655]
[1617719460948,1.62636,57541.0,57540.0,0.10725655]
[1617719461349,2.62636,57541.0,57515.0,0.30383624]
[1617719461549,2.62636,57541.0,57512.0,0.36460349]
[1617719461550,2.62636,57541.0,57511.0,0.4319439]
[1617719461950,1.0,57527.0,57511.0,0.1281]
[1617719462149,1.5,57526.0,57512.0,0.27]
[1617719462354,1.0,57525.0,57512.0,0.27]
[1617719462550,1.0,57523.0,57510.0,0.27]
[1617719462751,0.10725655,57520.0,57510.0,0.27]
[1617719462952,3.2526,57516.0,57513.0,0.27]